fUSD/lending_fUSD_20250507
["ID","MTS","AMOUNT","RATE_DAILY","PERIOD"]
[360173509,1746592239931,-450.0,0.00019643,2]
[360173510,1746592239940,-450.0,0.00019643,2]
[360173511,1746592239949,-450.0,0.00019643,2]
[360173512,1746592239958,-450.0,0.00019643,2]
[360173513,1746592239967,-450.0,0.00019643,2]
[360173514,1746592239976,-544.75883708,0.00019643,2]
[360173515,1746592239985,-450.0,0.00019643,2]
[360173516,1746592239995,-450.0,0.00019643,2]
[360173517,1746592240003,-450.0,0.00019643,2]
[360173519,1746592240012,-450.0,0.00019643,2]
[360173522,1746592240022,-450.0,0.00019643,2]
[360173523,1746592240031,-450.0,0.00019643,2]
[360173525,1746592240039,-450.0,0.00019643,2]
[360173526,1746592240049,-450.0,0.00019643,2]
[360173527,1746592240058,-450.0,0.00019643,2]
[360173528,1746592240067,-450.0,0.00019643,2]
[360173529,1746592240076,-450.0,0.00019643,2]
[360173530,1746592240085,-450.0,0.00019643,2]
[360173531,1746592240094,-500.77,0.00019643,2]
[360173532,1746592240103,-450.0,0.00019643,2]
[360173533,1746592240112,-464.25,0.00019643,2]
[360173534,1746592240121,-450.0,0.00019643,2]
[360173535,1746592240130,-450.0,0.00019643,2]
[360173536,1746592240139,-450.0,0.00019643,2]
[360173537,1746592240148,-450.0,0.00019643,2]
[360173538,1746592240157,-675.21,0.00019643,2]
[360173539,1746592240166,-450.0,0.00019643,2]
[360173540,1746592240175,-320.05712154,0.00019643,2]
[360173541,1746592240184,-450.0,0.00019643,2]
[360173542,1746592240193,-614.57,0.00019643,2]
[360173543,1746592240202,-450.0,0.00019643,2]
[360173544,1746592240211,-1072.83,0.00019643,2]
[360173545,1746592240220,-1081.56,0.00019643,2]
[360173546,1746592240229,-775.59,0.00019643,2]
[360173547,1746592240238,-450.0,0.00019643,2]
[360173548,1746592240247,-450.0,0.00019643,2]
[360173549,1746592240256,-450.0,0.00019643,2]
[360173550,1746592240265,-1426.38,0.00019643,2]
[360173551,1746592240275,-450.0,0.00019643,2]
[360173552,1746592240284,-450.0,0.00019643,2]
[360173553,1746592240294,-502.38,0.00019643,2]
[360173554,1746592240303,-450.0,0.00019643,2]
[360173555,1746592240312,-601.59,0.00019643,2]
[360173556,1746592240321,-450.0,0.00019643,2]
[360173557,1746592240330,-450.0,0.00019643,2]
[360173558,1746592240340,-450.0,0.00019643,2]
[360173559,1746592240349,-450.0,0.00019643,2]
[360173560,1746592240358,-24643.97,0.00019643,2]
[360173561,1746592240367,-450.0,0.00019643,2]
[360173562,1746592240376,-450.0,0.00019643,2]
[360173563,1746592240385,-450.0,0.00019643,2]
[360173564,1746592240394,-450.0,0.00019643,2]
[360173565,1746592240404,-450.0,0.00019643,2]
[360173566,1746592240413,-537.78,0.00019643,2]
[360173567,1746592240422,-450.0,0.00019643,2]
[360173568,1746592240431,-450.0,0.00019643,2]
[360173569,1746592240441,-276.03738292,0.00019643,2]
[360173570,1746592240450,-450.0,0.00019643,2]
[360173571,1746592240459,-450.0,0.00019643,2]
[360173572,1746592240468,-450.0,0.00019643,2]
[360173573,1746592240478,-179.1499105,0.00019643,2]
[360173574,1746592240487,-450.0,0.00019643,2]
[360173575,1746592240497,-450.0,0.00019643,2]
[360173576,1746592240506,-450.0,0.00019643,2]
[360173577,1746592240515,-450.0,0.00019643,2]
[360173578,1746592240524,-450.0,0.00019643,2]
[360173579,1746592240534,-501.73,0.00019643,2]
[360173580,1746592240542,-450.0,0.00019643,2]
[360173581,1746592240551,-450.0,0.00019643,2]
[360173582,1746592240560,-450.0,0.00019643,2]
[360173583,1746592240569,-185.42382483,0.00019643,2]
[360173584,1746592240579,-450.0,0.00019643,2]
[360173585,1746592240590,-450.0,0.00019643,2]
[360173586,1746592240601,-450.0,0.00019643,2]
[360173587,1746592240610,-450.0,0.00019643,2]
[360173588,1746592240622,-450.0,0.00019643,2]
[360173589,1746592240633,-450.0,0.00019643,2]
[360173590,1746592240643,-1341.44,0.00019643,2]
[360173591,1746592240653,-500.0,0.00019643,2]
[360173592,1746592240662,-450.0,0.00019643,2]
[360173593,1746592240671,-1112.43,0.00019643,2]
[360173594,1746592240680,-450.0,0.00019643,2]
[360173595,1746592240689,-739.75,0.00019643,2]
[360173596,1746592240698,-450.0,0.00019643,2]
[360173597,1746592240707,-450.0,0.00019643,2]
[360173598,1746592240716,-335.43022157,0.00019643,2]
[360173599,1746592240725,-450.0,0.00019643,2]
[360173600,1746592240734,-450.0,0.00019643,2]
[360173601,1746592240744,-949.12,0.00019643,2]
[360173602,1746592240753,-450.0,0.00019643,2]
[360173603,1746592240763,-450.0,0.00019643,2]
[360173604,1746592240772,-571.1190677,0.00019643,2]
[360173605,1746592240781,-450.0,0.00019643,2]
[360173606,1746592240795,-1040.56,0.00019643,2]
[360173607,1746592240803,-450.0,0.00019643,2]
[360173608,1746592240812,-450.0,0.00019643,2]
[360173609,1746592240821,-450.0,0.00019643,2]
[360173610,1746592240830,-490.25,0.00019643,2]
[360173611,1746592240841,-1585.61,0.00019643,2]
[360173612,1746592240851,-450.0,0.00019643,2]
[360173613,1746592240860,-450.0,0.00019643,2]
[360173614,1746592240870,-450.0,0.00019643,2]
[360173615,1746592240879,-169.49996,0.00019643,2]
[360173616,1746592240888,-450.0,0.00019643,2]
[360173617,1746592240897,-450.0,0.00019643,2]
[360173618,1746592240905,-508.77,0.00019643,2]
[360173619,1746592240914,-543.49,0.00019643,2]
[360173620,1746592240923,-450.0,0.00019643,2]
[360173621,1746592240933,-518.66,0.00019643,2]
[360173623,1746592240942,-429.941528,0.00019643,2]
[360173625,1746592240951,-450.0,0.00019643,2]
[360173627,1746592240960,-450.0,0.00019643,2]
[360173628,1746592240969,-450.0,0.00019643,2]
[360173629,1746592240977,-450.0,0.00019643,2]
[360173630,1746592240986,-450.0,0.00019643,2]
[360173631,1746592240995,-1185.4,0.00019643,2]
[360173632,1746592241004,-450.0,0.00019643,2]
[360173633,1746592241013,-230.583377,0.00019643,2]
[360173634,1746592241021,-450.0,0.00019643,2]
[360173635,1746592241030,-450.0,0.00019643,2]
[360173636,1746592241039,-1199.07,0.00019643,2]
[360173637,1746592241049,-450.0,0.00019643,2]
[360173638,1746592241058,-518.543839,0.00019643,2]
[360173639,1746592241067,-450.0,0.00019643,2]
[360173640,1746592241077,-450.0,0.00019643,2]
[360173641,1746592241086,-450.0,0.00019643,2]
[360173642,1746592241095,-450.0,0.00019644,2]
[360173643,1746592241104,-470.0,0.00019644,2]
[360173644,1746592241113,-470.0,0.00019644,2]
[360173645,1746592241122,-335.14875139,0.00019644,2]
[360173646,1746592241131,-450.0,0.00019644,2]
[360173647,1746592241141,-503.11204476,0.00019644,2]
[360173648,1746592241150,-388.14039288,0.00019644,2]
[360173649,1746592241159,-450.55537231,0.00019644,2]
[360173650,1746592241169,-450.0,0.00019644,2]
[360173651,1746592241178,-450.0,0.00019644,2]
[360173652,1746592241187,-580.87704048,0.00019644,2]
[360173653,1746592241196,-527.30659729,0.00019644,2]
[360173654,1746592241205,-450.0,0.00019644,2]
[360173655,1746592241215,-450.0,0.00019644,2]
[360173656,1746592241224,-546.42586973,0.00019644,2]
[360173657,1746592241234,-450.0,0.00019644,2]
[360173658,1746592241243,-250.0,0.00019644,2]
[360173659,1746592241253,-459.08350617,0.00019644,2]
[360173660,1746592241262,-450.0,0.00019644,2]
[360173661,1746592241271,-450.0,0.00019644,2]
[360173662,1746592241280,-450.0,0.00019644,2]
[360173663,1746592241289,-290.19907282,0.00019644,2]
[360173664,1746592241299,-487.69794333,0.00019644,2]
[360173665,1746592241308,-494.11155618,0.00019644,2]
[360173666,1746592241318,-487.7521928,0.00019644,2]
[360173667,1746592241328,-450.0,0.00019644,2]
[360173668,1746592241337,-452.47643851,0.00019644,2]
[360173669,1746592241346,-457.74690683,0.00019644,2]
[360173670,1746592241356,-450.0,0.00019644,2]
[360173671,1746592241365,-450.0,0.00019644,2]
[360173672,1746592241374,-450.0,0.00019644,2]
[360173673,1746592241383,-478.89894259,0.00019644,2]
[360173674,1746592241393,-450.0,0.00019644,2]
[360173675,1746592241402,-456.37325955,0.00019644,2]
[360173676,1746592241412,-462.86992883,0.00019644,2]
[360173677,1746592241421,-450.0,0.00019644,2]
[360173678,1746592241430,-450.0,0.00019644,2]
[360173679,1746592241439,-470.46706688,0.00019644,2]
[360173680,1746592241449,-472.44775347,0.00019644,2]
[360173681,1746592241459,-485.17842588,0.00019644,2]
[360173682,1746592241469,-506.0687502,0.00019644,2]
[360173683,1746592241478,-450.0,0.00019644,2]
[360173684,1746592241488,-450.0,0.00019644,2]
[360173685,1746592241498,-461.73836629,0.00019644,2]
[360173686,1746592241508,-455.08827521,0.00019644,2]
[360173687,1746592241517,-550.61705847,0.00019644,2]
[360173688,1746592241527,-458.49460836,0.00019644,2]
[360173689,1746592241536,-454.03189607,0.00019644,2]
[360173690,1746592241544,-461.84977361,0.00019644,2]
[360173691,1746592241554,-472.18900316,0.00019644,2]
[360173692,1746592241563,-450.0,0.00019644,2]
[360173693,1746592241572,-462.1365419,0.00019644,2]
[360173694,1746592241582,-450.0,0.00019644,2]
[360173695,1746592241592,-450.0,0.00019644,2]
[360173696,1746592241601,-450.0,0.00019644,2]
[360173697,1746592241611,-461.71905888,0.00019644,2]
[360173698,1746592241621,-476.32033648,0.00019644,2]
[360173699,1746592241630,-450.0,0.00019644,2]
[360173700,1746592241639,-529.13041145,0.00019644,2]
[360173701,1746592241648,-485.36888247,0.00019644,2]
[360173702,1746592241658,-450.0,0.00019644,2]
[360173703,1746592241667,-450.0,0.00019644,2]
[360173704,1746592241676,-450.0,0.00019644,2]
[360173705,1746592241685,-450.0,0.00019644,2]
[360173706,1746592241695,-450.0,0.00019644,2]
[360173707,1746592241704,-460.0341577,0.00019644,2]
[360173708,1746592241714,-450.0,0.00019644,2]
[360173709,1746592241723,-503.61441361,0.00019644,2]
[360173710,1746592241733,-510.03454904,0.00019644,2]
[360173711,1746592241743,-491.04630635,0.00019644,2]
[360173712,1746592241752,-450.0,0.00019644,2]
[360173713,1746592241763,-450.0,0.00019644,2]
[360173714,1746592241772,-529.11998178,0.00019644,2]
[360173715,1746592241782,-515.27234608,0.00019644,2]
[360173716,1746592241796,-523.08289164,0.00019644,2]
[360173717,1746592241806,-518.32928608,0.00019644,2]
[360173718,1746592241814,-450.0,0.00019644,2]
[360173719,1746592241824,-450.0,0.00019644,2]
[360173720,1746592241834,-492.17453106,0.00019644,2]
[360173721,1746592241844,-450.0,0.00019644,2]
[360173722,1746592241853,-464.75287313,0.00019644,2]
[360173723,1746592241865,-450.0,0.00019644,2]
[360173724,1746592241874,-450.0,0.00019644,2]
[360173725,1746592241884,-500.0,0.00019644,2]
[360173726,1746592241894,-474.63404846,0.00019644,2]
[360173727,1746592241904,-454.43057121,0.00019644,2]
[360173728,1746592241913,-450.0,0.00019644,2]
[360173729,1746592241923,-462.45731019,0.00019644,2]
[360173730,1746592241932,-450.0,0.00019644,2]
[360173731,1746592241941,-450.0,0.00019644,2]
[360173732,1746592241951,-450.0,0.00019644,2]
[360173733,1746592241961,-450.0,0.00019644,2]
[360173734,1746592241970,-450.0,0.00019644,2]
[360173735,1746592241980,-454.3799001,0.00019644,2]
[360173736,1746592241989,-470.0,0.00019644,2]
[360173737,1746592241999,-560.79231078,0.00019644,2]
[360173738,1746592242008,-450.0,0.00019644,2]
[360173739,1746592242018,-490.0,0.00019644,2]
[360173740,1746592242027,-450.0,0.00019644,2]
[360173741,1746592242037,-490.0,0.00019644,2]
[360173742,1746592242046,-450.0,0.00019644,2]
[360173743,1746592242055,-450.0,0.00019644,2]
[360173744,1746592242065,-450.0,0.00019644,2]
[360173745,1746592242074,-490.0,0.00019644,2]
[360173746,1746592242084,-450.0,0.00019644,2]
[360173747,1746592242093,-450.0,0.00019644,2]
[360173748,1746592242102,-450.0,0.00019644,2]
[360173749,1746592242113,-490.0,0.00019644,2]
[360173750,1746592242122,-490.0,0.00019644,2]
[360173751,1746592242131,-450.0,0.00019644,2]
[360173752,1746592242141,-450.0,0.00019644,2]
[360173753,1746592242150,-450.0,0.00019644,2]
[360173754,1746592242160,-450.0,0.00019644,2]
[360173755,1746592242170,-450.0,0.00019644,2]
[360173756,1746592242179,-450.0,0.00019644,2]
[360173757,1746592242188,-450.0,0.00019644,2]
[360173758,1746592242197,-450.0,0.00019644,2]
[360173759,1746592242207,-450.0,0.00019644,2]
[360173760,1746592242216,-450.0,0.00019644,2]
[360173761,1746592242225,-397.04755012,0.00019644,2]
[360173762,1746592242234,-275.87913113,0.00019644,2]
[360173763,1746592242243,-450.59733745,0.00019644,2]
[360173764,1746592242252,-450.0,0.00019644,2]
[360173765,1746592242261,-450.0,0.00019644,2]
[360173766,1746592242271,-450.0,0.00019644,2]
[360173767,1746592242280,-450.0,0.00019644,2]
[360173768,1746592242289,-450.0,0.00019644,2]
[360173769,1746592242298,-450.0,0.00019644,2]
[360173770,1746592242308,-450.0,0.00019644,2]
[360173771,1746592242317,-292.0377185,0.00019644,2]
[360173772,1746592242327,-450.0,0.00019644,2]
[360173773,1746592242337,-450.0,0.00019644,2]
[360173774,1746592242347,-450.0,0.00019644,2]
[360173775,1746592242358,-490.0,0.00019644,2]
[360173776,1746592242368,-470.0,0.00019644,2]
[360173777,1746592242377,-232.53236692,0.00019644,2]
[360173778,1746592242387,-450.0,0.00019644,2]
[360173779,1746592242396,-470.0,0.00019644,2]
[360173780,1746592242405,-470.0,0.00019644,2]
[360173781,1746592242414,-450.0,0.00019644,2]
[360173782,1746592242424,-450.0,0.00019644,2]
[360173783,1746592242433,-450.0,0.00019644,2]
[360173784,1746592242442,-506.84870607,0.00019644,2]
[360173785,1746592242452,-512.26018042,0.00019644,2]
[360173786,1746592242461,-268.91204822,0.00019644,2]
[360173787,1746592242470,-450.0,0.00019644,2]
[360173788,1746592242480,-470.0,0.00019644,2]
[360173789,1746592242489,-470.0,0.00019644,2]
[360173790,1746592242498,-450.0,0.00019644,2]
[360173791,1746592242508,-335.94169893,0.00019644,2]
[360173792,1746592242517,-450.0,0.00019644,2]
[360173793,1746592242526,-450.0,0.00019644,2]
[360173794,1746592242536,-450.0,0.00019644,2]
[360173795,1746592242545,-450.0,0.00019644,2]
[360173796,1746592242554,-450.0,0.00019644,2]
[360173797,1746592242564,-450.0,0.00019644,2]
[360173798,1746592242573,-1879.24,0.00019644,2]
[360173799,1746592242583,-450.0,0.00019644,2]
[360173800,1746592242592,-450.0,0.00019644,2]
[360173801,1746592242602,-463.47058947,0.00019644,2]
[360173802,1746592242611,-450.0,0.00019644,2]
[360173803,1746592242620,-450.0,0.00019644,2]
[360173804,1746592242630,-487.43730916,0.00019644,2]
[360173805,1746592242639,-369.54700957,0.00019644,2]
[360173806,1746592242648,-450.0,0.00019644,2]
[360173807,1746592242658,-484.73,0.00019644,2]
[360173808,1746592242667,-450.0,0.00019644,2]
[360173809,1746592242676,-473.28201597,0.00019644,2]
[360173810,1746592242686,-450.0,0.00019644,2]
[360173811,1746592242695,-450.0,0.00019644,2]
[360173812,1746592242705,-450.0,0.00019644,2]
[360173813,1746592242715,-1348.68,0.00019644,2]
[360173814,1746592242724,-450.0,0.00019644,2]
[360173815,1746592242733,-450.0,0.00019644,2]
[360173816,1746592242746,-500.0,0.00019644,2]
[360173817,1746592242755,-450.0,0.00019644,2]
[360173818,1746592242764,-1430.9,0.00019644,2]
[360173819,1746592242774,-450.0,0.00019644,2]
[360173820,1746592242784,-668.49,0.00019644,2]
[360173821,1746592242795,-450.0,0.00019644,2]
[360173822,1746592242805,-1353.93,0.00019644,2]
[360173824,1746592242814,-500.0,0.00019644,2]
[360173826,1746592242824,-450.0,0.00019644,2]
[360173827,1746592242834,-450.0,0.00019644,2]
[360173828,1746592242843,-450.0,0.00019644,2]
[360173829,1746592242852,-450.0,0.00019644,2]
[360173830,1746592242864,-450.0,0.00019644,2]
[360173831,1746592242873,-476.97015173,0.00019644,2]
[360173832,1746592242883,-450.0,0.00019644,2]
[360173833,1746592242892,-450.0,0.00019644,2]
[360173834,1746592242901,-450.0,0.00019644,2]
[360173835,1746592242910,-450.0,0.00019644,2]
[360173836,1746592242920,-3004.63,0.00019644,2]
[360173838,1746592242929,-450.0,0.00019644,2]
[360173840,1746592242938,-450.0,0.00019644,2]
[360173842,1746592242947,-2513.33187417,0.00019644,2]
[360173863,1746592243120,-5966.21284173,0.00019518,2]
[360173864,1746592243130,-185.325,0.00019596,2]
[360173865,1746592243139,-470.0,0.00019642,2]
[360173866,1746592243148,-24887.58812583,0.00019644,2]
[360173867,1746592243158,-450.0,0.00019644,2]
[360173868,1746592243167,-487.75054878,0.00019644,2]
[360173869,1746592243176,-1234.02,0.00019644,2]
[360173870,1746592243185,-450.0,0.00019644,2]
[360173871,1746592243195,-450.0,0.00019644,2]
[360173872,1746592243204,-1013.8,0.00019644,2]
[360173873,1746592243214,-490.0,0.00019644,2]
[360173874,1746592243223,-785.31,0.00019644,2]
[360173875,1746592243233,-450.0,0.00019644,2]
[360173876,1746592243243,-1735.11,0.00019644,2]
[360173877,1746592243253,-6032.11,0.00019644,2]
[360173878,1746592243265,-450.0,0.00019644,2]
[360173879,1746592243274,-450.0,0.00019644,2]
[360173880,1746592243283,-594.76,0.00019644,2]
[360173881,1746592243293,-450.0,0.00019644,2]
[360173882,1746592243302,-575.87,0.00019644,2]
[360173883,1746592243311,-450.0,0.00019644,2]
[360173884,1746592243322,-450.0,0.00019644,2]
[360173885,1746592243331,-894.36,0.00019644,2]
[360173886,1746592243341,-490.0,0.00019644,2]
[360173887,1746592243350,-4950.25,0.00019644,2]
[360173888,1746592243360,-450.0,0.00019644,2]
[360173889,1746592243370,-450.0,0.00019644,2]
[360173890,1746592243379,-450.0,0.00019644,2]
[360173891,1746592243389,-450.0,0.00019644,2]
[360173892,1746592243398,-192.88505064,0.00019644,2]
[360173893,1746592243407,-450.0,0.00019644,2]
[360173894,1746592243417,-450.0,0.00019644,2]
[360173895,1746592243426,-450.0,0.00019644,2]
[360173896,1746592243436,-465.37060004,0.00019644,2]
[360173897,1746592243445,-469.32,0.00019644,2]
[360173898,1746592243454,-450.0,0.00019644,2]
[360173899,1746592243464,-450.0,0.00019644,2]
[360173900,1746592243473,-450.0,0.00019644,2]
[360173901,1746592243482,-450.0,0.00019644,2]
[360173902,1746592243491,-450.0,0.00019644,2]
[360173903,1746592243501,-450.0,0.00019644,2]
[360173904,1746592243510,-450.0,0.00019644,2]
[360173905,1746592243519,-450.0,0.00019645,2]
[360173906,1746592243529,-450.0,0.00019645,2]
[360173907,1746592243538,-450.0,0.00019645,2]
[360173908,1746592243547,-450.0,0.00019645,2]
[360173909,1746592243556,-450.0,0.00019645,2]
[360173910,1746592243565,-450.0,0.00019646,2]
[360173911,1746592243574,-1106.94,0.00019646,2]
[360173912,1746592243583,-1806.27,0.00019646,2]
[360173913,1746592243592,-450.0,0.00019646,2]
[360173914,1746592243601,-182.33876259,0.00019646,2]
[360173915,1746592243611,-450.0,0.00019646,2]
[360173916,1746592243620,-908.99,0.00019646,2]
[360173917,1746592243630,-562.34,0.00019646,2]
[360173918,1746592243639,-450.0,0.00019646,2]
[360173919,1746592243835,-450.0,0.00019646,2]
[360173920,1746592243846,-450.0,0.00019646,2]
[360173921,1746592243856,-1021.11,0.00019646,2]
[360173922,1746592243866,-983.38,0.00019646,2]
[360173923,1746592243876,-450.0,0.00019646,2]
[360173924,1746592243885,-450.0,0.00019646,2]
[360173925,1746592243895,-459.01,0.00019646,2]
[360173926,1746592243904,-474.41,0.00019646,2]
[360173927,1746592243914,-450.0,0.00019646,2]
[360173928,1746592243923,-540.39,0.00019646,2]
[360173929,1746592243932,-450.0,0.00019646,2]
[360173930,1746592243942,-450.0,0.00019646,2]
[360173931,1746592243951,-450.0,0.00019646,2]
[360173932,1746592243961,-1998.08,0.00019646,2]
[360173933,1746592243971,-450.0,0.00019646,2]
[360173934,1746592243981,-450.0,0.00019646,2]
[360173935,1746592243991,-1051.61,0.00019646,2]
[360173936,1746592244000,-450.0,0.00019646,2]
[360173937,1746592244010,-450.0,0.00019646,2]
[360173938,1746592244020,-760.82,0.00019646,2]
[360173939,1746592244029,-195.72413108,0.00019646,2]
[360173940,1746592244039,-275.93993691,0.00019646,2]
[360173941,1746592244048,-478.13868149,0.00019647,2]
[360173942,1746592244058,-450.0,0.00019647,2]
[360173943,1746592244067,-450.0,0.00019647,2]
[360173944,1746592244077,-262.16,0.00019647,2]
[360173945,1746592244087,-450.0,0.00019647,2]
[360173946,1746592244097,-450.0,0.00019647,2]
[360173947,1746592244107,-450.0,0.00019647,2]
[360173948,1746592244117,-854.5,0.00019647,2]
[360173949,1746592244126,-574.37800027,0.00019647,2]
[360173950,1746592244136,-450.0,0.00019647,2]
[360173951,1746592244146,-450.0,0.00019647,2]
[360173952,1746592244156,-450.0,0.00019647,2]
[360173953,1746592244165,-450.0,0.00019647,2]
[360173954,1746592244176,-450.0,0.00019647,2]
[360173955,1746592244185,-450.0,0.00019647,2]
[360173956,1746592244195,-450.0,0.00019647,2]
[360173957,1746592244204,-450.0,0.00019647,2]
[360173958,1746592244214,-450.0,0.00019647,2]
[360173959,1746592244223,-450.0,0.00019647,2]
[360173960,1746592244233,-450.0,0.00019647,2]
[360173961,1746592244242,-450.0,0.00019647,2]
[360173962,1746592244252,-599.35378014,0.00019647,2]
[360173963,1746592244262,-450.0,0.00019647,2]
[360173964,1746592244272,-418.05230118,0.00019647,2]
[360173965,1746592244281,-450.0,0.00019647,2]
[360173966,1746592244291,-450.0,0.00019647,2]
[360173967,1746592244301,-450.0,0.00019647,2]
[360173968,1746592244310,-450.0,0.00019647,2]
[360173969,1746592244320,-450.0,0.00019647,2]
[360173970,1746592244330,-450.0,0.00019647,2]
[360173971,1746592244340,-569.26,0.00019647,2]
[360173972,1746592244349,-450.0,0.00019647,2]
[360173973,1746592244359,-450.0,0.00019647,2]
[360173974,1746592244369,-450.0,0.00019647,2]
[360173975,1746592244378,-681.68,0.00019647,2]
[360173976,1746592244388,-723.81,0.00019647,2]
[360173977,1746592244398,-450.0,0.00019647,2]
[360173978,1746592244408,-450.0,0.00019647,2]
[360173979,1746592244417,-500.77,0.00019647,2]
[360173980,1746592244427,-450.0,0.00019647,2]
[360173981,1746592244437,-450.0,0.00019647,2]
[360173982,1746592244446,-464.25,0.00019647,2]
[360173983,1746592244456,-450.0,0.00019647,2]
[360173984,1746592244465,-450.0,0.00019647,2]
[360173985,1746592244475,-450.0,0.00019647,2]
[360173986,1746592244485,-550.0,0.00019647,2]
[360173987,1746592244494,-675.21,0.00019647,2]
[360173988,1746592244504,-450.0,0.00019647,2]
[360173989,1746592244513,-450.0,0.00019647,2]
[360173990,1746592244523,-450.0,0.00019647,2]
[360173991,1746592244532,-450.0,0.00019647,2]
[360173992,1746592244542,-751.52,0.00019647,2]
[360173993,1746592244551,-450.0,0.00019647,2]
[360173994,1746592244560,-450.0,0.00019647,2]
[360173995,1746592244569,-478.47,0.00019647,2]
[360173996,1746592244578,-450.0,0.00019647,2]
[360173997,1746592244588,-450.0,0.00019647,2]
[360173998,1746592244597,-790.3,0.00019647,2]
[360173999,1746592244607,-614.57,0.00019647,2]
[360174000,1746592244616,-450.0,0.00019647,2]
[360174001,1746592244625,-450.0,0.00019647,2]
[360174002,1746592244635,-450.0,0.00019647,2]
[360174003,1746592244645,-1072.83,0.00019647,2]
[360174004,1746592244654,-1081.56,0.00019647,2]
[360174005,1746592244663,-450.0,0.00019647,2]
[360174006,1746592244672,-775.59,0.00019647,2]
[360174007,1746592244681,-450.0,0.00019647,2]
[360174008,1746592244690,-450.0,0.00019647,2]
[360174009,1746592244700,-450.0,0.00019647,2]
[360174010,1746592244710,-1426.38,0.00019647,2]
[360174011,1746592244719,-470.0,0.00019647,2]
[360174012,1746592244728,-450.0,0.00019647,2]
[360174013,1746592244737,-502.38,0.00019647,2]
[360174014,1746592244747,-502.26992778,0.00019647,2]
[360174015,1746592244756,-601.59,0.00019647,2]
[360174016,1746592244765,-167.28908916,0.00019647,2]
[360174017,1746592244775,-450.0,0.00019647,2]
[360174018,1746592244785,-450.0,0.00019647,2]
[360174019,1746592244796,-450.0,0.00019647,2]
[360174020,1746592244805,-450.0,0.00019647,2]
[360174021,1746592244815,-450.0,0.00019647,2]
[360174022,1746592244824,-24643.97,0.00019647,2]
[360174023,1746592244834,-450.0,0.00019647,2]
[360174024,1746592244843,-450.0,0.00019647,2]
[360174025,1746592244853,-450.0,0.00019647,2]
[360174026,1746592244864,-450.0,0.00019647,2]
[360174027,1746592244874,-450.0,0.00019647,2]
[360174028,1746592244883,-537.78,0.00019647,2]
[360174029,1746592244892,-450.0,0.00019647,2]
[360174030,1746592244902,-450.0,0.00019647,2]
[360174031,1746592244913,-450.0,0.00019647,2]
[360174032,1746592244924,-219.53756503,0.00019647,2]
[360174033,1746592244936,-450.0,0.00019647,2]
[360174034,1746592244945,-450.0,0.00019647,2]
[360174035,1746592244955,-450.0,0.00019647,2]
[360174036,1746592244964,-450.0,0.00019647,2]
[360174037,1746592244974,-450.0,0.00019647,2]
[360174038,1746592244983,-501.73,0.00019647,2]
[360174039,1746592244993,-450.0,0.00019647,2]
[360174040,1746592245002,-450.0,0.00019647,2]